Cogmind - Beta 13 @@@ ROGUE MODE // 2024.04.03 @ 19:26:21 Player: bruderalex Result: Destroyed by G-34 Mercenary with Small Laser Performance ------------- Evolutions (1) 500 Regions Visited (4) 800 Robots Destroyed (35) 175 Value Destroyed (953) 953 Prototype IDs (1) 20 Alien Tech Used (0) 0 Bonus (0) 0 TOTAL SCORE: 2448 Bonus ------- None Cogmind --------- Core Integrity 0/400 Matter 275/300 Energy 57/100 System Corruption 2% Temperature Hot (243) Movement Treading (160) Location -9/Mines Parts ------- > --- POWER (1) -------- (None) > --- PROPULSION (3) --- Light Treads > --- UTILITY (2) ------ Small Storage Unit Improved Targeting Computer > --- WEAPON (3) ------- Small Laser Beam Rifle Particle Gun > --- INVENTORY (8) ---- Ion Engine Light Ion Engine Improved Ion Engine Heat Sink Sensor Array Peak State ------------ > --- POWER ------------ Ion Engine > --- PROPULSION ------- Light Treads Light Treads Light Treads > --- UTILITY ---------- Small Storage Unit Improved Targeting Computer > --- WEAPON ----------- Beam Rifle Improved Medium Laser Light Assault Rifle > --- INVENTORY -------- Ion Engine Improved Ion Engine Aluminum Leg Aluminum Leg Aluminum Leg Sensor Array EM Pulse Gun Beam Rifle [Rating: 14] Favorites ----------- Power Light Ion Engine Engine Light Ion Engine Propulsion Light Treads Treads Light Treads Leg Aluminum Leg Utility Small Storage Unit Device Heat Sink Storage Small Storage Unit Processor Improved Targeting Computer Weapon EM Pulse Gun Energy Gun EM Pulse Gun Ballistic Gun Light Assault Rifle Build | -11 -10 -10 -9 -9 ------- Run | Yrd Mat Min Mat Min Slots Evolved 2 | . . . 2 . Power . | . . . . . Propulsion 1 | . . . 1 . Utility . | . . . . . Weapon 1 | . . . 1 . Parts Attached 24 | 6 1 2 13 2 Power 3 | 1 . 1 1 . Engine 3 | 1 . 1 1 . Core . | . . . . . Reactor . | . . . . . Propulsion 8 | 2 . . 6 . Treads 5 | 2 . . 3 . Leg 3 | . . . 3 . Wheel . | . . . . . Hover . | . . . . . Flight . | . . . . . Utility 3 | 1 1 . 1 . Device 1 | . 1 . . . Storage 1 | 1 . . . . Processor 1 | . . . 1 . Hackware . | . . . . . Protection . | . . . . . Artifact . | . . . . . Weapon 10 | 2 . 1 5 2 Energy Gun 9 | 2 . . 5 2 Energy Cannon . | . . . . . Ballistic Gun 1 | . . 1 . . Ballistic Cannon . | . . . . . Launcher . | . . . . . Special Weapon . | . . . . . Impact Weapon . | . . . . . Slashing Weapon . | . . . . . Piercing Weapon . | . . . . . Special Melee Weapon . | . . . . . Unidentified Prototypes 1 | . . . 1 . Parts Lost 7 | . 1 . 1 5 Power 3 | . 1 . 1 1 Propulsion 2 | . . . . 2 Utility . | . . . . . Weapon 2 | . . . . 2 Highest Loss Streak 5 | . 1 . 1 5 To Critical Strikes . | . . . . . Average Slot Usage (%) 94 | . 91 95 96 88 Engine 9 | . 12 9 8 7 Treads 25 | . 28 28 21 30 Leg 5 | . . . 11 . Device 6 | . 7 14 1 . Storage 12 | . 14 14 11 11 Processor 4 | . . . 9 11 Energy Gun 26 | . 28 25 26 27 Ballistic Gun 3 | . . 2 6 . Naked Turns . | . . . . . Heaviest Build 18 | 12 13 13 18 18 Greatest Support 60 | 40 40 40 60 60 Greatest Overweight (x) 5 | . . . 5 . Average Overweight (x) . | . . . . . Largest Inventory Capacity 8 | 8 8 8 8 8 Average Capacity 7 | 6 8 8 8 8 Most Carried 8 | 5 8 8 8 5 Average Carried 6 | 2 5 7 6 5 Final Capacity 8 | 8 8 8 8 8 Final Carried 8 | 4 8 7 5 5 Class Distribution -------------------- 53% | Mutant 40% | Gunner 5% | Scavenger-Gunner Dominant Class ---------------- Mutant | -10/Materials Mutant | -10/Mines Gunner | -9/Materials Gunner | -9/Mines Resources | -11 -10 -10 -9 -9 ----------- Run | Yrd Mat Min Mat Min Matter Collected 498 | 127 134 20 159 58 Remotely . | . . . . . Salvage Created 1207 | . 249 89 689 180 Parts 77 | . 23 10 36 8 Haulers Intercepted . | . . . . . Recyclers Shooed 2 | . . 1 1 . Parts Field Recycled . | . . . . . Retrieved Matter . | . . . . . Parts Self-Destructed . | . . . . . Prevented . | . . . . . Kills | -11 -10 -10 -9 -9 ------- Run | Yrd Mat Min Mat Min Combat Hostiles Destroyed 29 | . 6 5 14 4 Guns 28 | . 6 4 14 4 AOE 1 | . . 1 . . Classes Destroyed 5 | . 3 . 2 . Worker 2 | . . . 2 . Watcher 4 | . 3 . 1 . Swarmer 8 | . 3 5 . . Grunt 17 | . 3 . 10 4 Sentry 4 | . . . 4 . Best Kill Streak 3 | . 3 3 3 2 Combat Bots Only 3 | . 3 3 3 2 Max Kills in Single Turn 2 | . 2 2 2 1 Gunslinging 1 | . 1 1 1 . Exploded 1 | . . 1 . . Melee . | . . . . . Uniques/NPCs Destroyed . | . . . . . Combat | -11 -10 -10 -9 -9 -------- Run | Yrd Mat Min Mat Min Hostile Shots Fired 196 | . 39 18 77 62 Missed 56 | . 15 4 28 9 Damage Taken 1748 | . 242 115 654 737 Core 469 | . 47 17 158 247 Absorbed by Shields . | . . . . . Core Remaining (%) 87 | 100 . 74 . . Volleys Fired 88 | . 28 8 42 10 Largest 3 | . 2 2 3 3 Hottest 152 | . 90 90 152 152 Shots Fired 222 | . 56 16 126 24 Gun 222 | . 56 16 126 24 Cannon . | . . . . . Launcher . | . . . . . Special . | . . . . . Kinetic 33 | . . . 33 . Thermal 139 | . 28 8 84 19 Explosive . | . . . . . Electromagnetic 50 | . 28 8 9 5 Robot Hit Streak 24 | . 7 3 24 9 Robot Miss Streak 6 | . 6 3 4 1 Penetration Max . | . . . . . Secondary Targets 9 | . 3 1 4 1 Max Gunslinging Chain 2 | . 1 1 2 1 Shots Hit Robots 144 | . 30 8 86 20 Core Hits 54 | . 12 7 28 7 Critical Kills . | . . . . . Critical Parts Destroyed . | . . . . . Critical Strikes 9 | . 2 . 5 2 Burn 8 | . 1 . 5 2 Corrupt 1 | . 1 . . . Melee Attacks . | . . . . . Impact . | . . . . . Slashing . | . . . . . Piercing . | . . . . . Sneak Attacks . | . . . . . Combat Hostiles . | . . . . . Follow-up Attacks . | . . . . . Damage Inflicted 2086 | . 394 136 1226 330 Guns 2016 | . 389 98 1202 327 Cannons . | . . . . . Explosions 27 | . . 27 . . Melee . | . . . . . Ramming 43 | . 5 11 24 3 Kinetic 196 | . . . 196 . Thermal 1422 | . 173 78 899 272 Explosive . | . . . . . Electromagnetic 425 | . 216 47 107 55 Impact . | . . . . . Slashing . | . . . . . Piercing . | . . . . . Highest Corruption 2 | . . . 2 2 Average Corruption 2 | . . . 2 2 Corruption Purged . | . . . . . Corruption Blocked . | . . . . . Effects 7 | . . . 5 2 Message Errors 2 | . . . 1 1 Matter Fused 1 | . . . 1 . Heat Flow Errors 1 | . . . . 1 Energy Discharges 2 | . . . 2 . Data Loss (minor) 1 | . . . 1 . Overload Shots . | . . . . . Overflow Damage . | . . . . . Projectiles . | . . . . . Explosions . | . . . . . Melee . | . . . . . Knockbacks . | . . . . . Impact . | . . . . . Kinetic . | . . . . . Secondary . | . . . . . Self-Inflicted Damage 4 | . . 4 . . Shots 1 | . . 1 . . Rammed 12 | . 1 7 2 2 Targets Rammed 16 | . 1 7 6 2 Kicked 4 | . . . 4 . Crushed . | . . . . . Highest Temperature 600 | . 60 7 400 600 Average Temperature 134 | . 24 4 118 331 Received Heat Transfer 771 | . 78 . 348 345 Effects 18 | . . . 4 14 Shutdowns 3 | . . . . 3 Energy Bleed 1 | . . . 1 . Interference 6 | . . . . 6 Matter Decay 2 | . . . . 2 Damage (minor) 1 | . . . . 1 Damage (major) 3 | . . . 3 . Damage (core) 2 | . . . . 2 Siege Activations . | . . . . . Robots Corrupted . | . . . . . Combat Hostiles . | . . . . . Parts Fried . | . . . . . Impact Corruptions . | . . . . . Robots Melted . | . . . . . Combat Hostiles . | . . . . . Parts Melted 14 | . 1 . 10 3 Heat Transferred 4000 | . 592 148 2446 814 Parts Sabotaged . | . . . . . Parts Stolen . | . . . . . Parts Stripped . | . . . . . Power Chain Reactions 1 | . . 1 . . Alert | -11 -10 -10 -9 -9 ------- Run | Yrd Mat Min Mat Min Peak Influence 347 | . 246 171 347 114 Initial 95 | . . 95 27 52 Average 132 | . 99 105 183 79 Maximum Alert Level 1 | . 1 . 1 . Low Security (%) 81 | 100 90 100 61 100 Level 1 18 | . 9 . 38 . Level 2 . | . . . . . Level 3 . | . . . . . Level 4 . | . . . . . Level 5 . | . . . . . High Security . | . . . . . Max Security . | . . . . . Squads Dispatched 5 | . 2 . 2 1 Investigation 3 | . 1 . 1 1 Extermination . | . . . . . Reinforcement 2 | . 1 . 1 . Assault . | . . . . . Garrison . | . . . . . Intercept . | . . . . . Searches Triggered . | . . . . . Construction Impeded . | . . . . . Haulers Reinforced . | . . . . . Active Scanning Responses . | . . . . . Cargo Convoy Interrupts . | . . . . . Stealth | -11 -10 -10 -9 -9 --------- Run | Yrd Mat Min Mat Min Distress Signals 2 | . 1 . 1 . Communications Jammed . | . . . . . Distress Signals . | . . . . . Times Spotted 50 | . 13 6 25 6 Peak Tracking Total 7 | . 3 3 7 4 Tactical Retreats 3 | . . 1 2 . Traps | -11 -10 -10 -9 -9 ------- Run | Yrd Mat Min Mat Min Traps Triggered 1 | . . . 1 . Indirectly . | . . . . . Trap Hack Attempts . | . . . . . Triggered . | . . . . . Disarmed . | . . . . . Reprogrammed . | . . . . . Reused . | . . . . . Traps Extracted . | . . . . . Installed . | . . . . . Triggered . | . . . . . Machines | -11 -10 -10 -9 -9 ---------- Run | Yrd Mat Min Mat Min Machines Disabled 1 | . 1 . . . Max in Single Turn 1 | . 1 . . . Machines Repaired . | . . . . . Machines Dismantled . | . . . . . Machines Sabotaged . | . . . . . Overloaded Fab Kills . | . . . . . Hacking | -11 -10 -10 -9 -9 --------- Run | Yrd Mat Min Mat Min Machines Accessed 6 | . 2 . 3 1 Terminals 5 | . 2 . 2 1 Fabricators . | . . . . . Repair Stations . | . . . . . Recycling Units 1 | . . . 1 . Scanalyzers . | . . . . . Garrison Access . | . . . . . Total Hacks 30 | . 16 . 9 5 Successful 8 | . 6 . 1 1 Failed 22 | . 10 . 8 4 Catastrophic 10 | . 4 . 5 1 Database Lockouts . | . . . . . Manual 24 | . 13 . 8 3 Terminals 28 | . 16 . 7 5 Fabricators . | . . . . . Repair Stations . | . . . . . Recycling Units 2 | . . . 2 . Scanalyzers . | . . . . . Garrison Access . | . . . . . Terminal Hacks 7 | . 6 . . 1 Record 7 | . 6 . . 1 Fabricator Hacks . | . . . . . Repair Station Hacks . | . . . . . Recycling Unit Hacks 1 | . . . 1 . Retrieve Components 1 | . . . 1 . Scanalyzer . | . . . . . Garrison Access Hacks . | . . . . . Unauthorized Hacks . | . . . . . Terminals . | . . . . . Fabricators . | . . . . . Repair Stations . | . . . . . Recycling Units . | . . . . . Scanalyzers . | . . . . . Garrison Access . | . . . . . Data Cores Recovered . | . . . . . Used . | . . . . . Hacking Detections 6 | . 2 . 3 1 Full Trace Events 4 | . 2 . 1 1 Feedback Events . | . . . . . Feedback Blocked . | . . . . . Robot Schematics Acquired . | . . . . . Robots Built . | . . . . . Authchips . | . . . . . Time . | . . . . . Total Robot Build Rating . | . . . . . Part Schematics Acquired . | . . . . . Parts Built . | . . . . . Authchips . | . . . . . Time . | . . . . . Total Part Build Rating . | . . . . . Parts Repaired . | . . . . . Time . | . . . . . Parts Recycled . | . . . . . Recycled Matter . | . . . . . Retrieved Matter . | . . . . . Retrieved Components 9 | . . . 9 . Parts Scanalyzed . | . . . . . Part Schematics Acquired . | . . . . . Parts Damaged . | . . . . . Bothacking | -11 -10 -10 -9 -9 ------------ Run | Yrd Mat Min Mat Min Used RIF Installer . | . . . . . Robots Hacked . | . . . . . Non-combat . | . . . . . Combat . | . . . . . Robot Hacks Applied . | . . . . . Relay Couplers Released . | . . . . . Fabnet Peak Effective % . | . . . . . Robots Rewired . | . . . . . Allies Hacked . | . . . . . Hacks Repelled . | . . . . . Allies | -11 -10 -10 -9 -9 -------- Run | Yrd Mat Min Mat Min Total Allies . | . . . . . Largest Group . | . . . . . Highest-Rated Group . | . . . . . Highest-Rated Ally . | . . . . . Total Orders . | . . . . . Ally Attacks . | . . . . . Total Damage . | . . . . . Kills . | . . . . . Allies Corrupted . | . . . . . Allies Melted . | . . . . . Intel | -11 -10 -10 -9 -9 ------- Run | Yrd Mat Min Mat Min Robot Analysis Total . | . . . . . Derelict Logs Recovered . | . . . . . Drone Launches . | . . . . . Drone Recoveries . | . . . . . Exploration | -11 -10 -10 -9 -9 ------------- Run | Yrd Mat Min Mat Min Turns Passed 2080 | 82 382 618 899 99 Spaces Moved 1075 | 54 177 355 458 31 Core 18 | 17 . . 1 . Treads 883 | 37 177 355 283 31 Legs 174 | . . . 174 . Wheels . | . . . . . Hover . | . . . . . Flight . | . . . . . Fastest Speed 50 | 50 160 160 120 160 Average Speed 155 | 125 160 160 152 160 Slowest Speed 300 | 160 160 160 300 160 Overloaded Moves . | . . . . . Propulsion Burnouts . | . . . . . Robots Hopped . | . . . . . Cave-ins Triggered . | . . . . . Exploration Rate (%) 29 | 4 26 69 37 9 Regions Visited 4 Branch Regions 2 Pre-discovered Areas . | . . . . . Known Exits Taken . | . . . . . Unknown Exits Taken 4 | 1 1 1 1 . Scrap Searched 1 | . . 1 . . Spaces Dug . | . . . . . Terrain Destroyed 6 | . . 6 . . Melee . | . . . . . Projectile . | . . . . . AOE 6 | . . 6 . . Terrain Rammed . | . . . . . Walls Destroyed . | . . . . . Machines Disabled . | . . . . . Actions | -11 -10 -10 -9 -9 --------- Run | Yrd Mat Min Mat Min Total 1300 | 67 219 385 571 58 Wait 63 | . 9 12 29 13 Move 1071 | 53 176 354 457 31 Hop . | . . . . . Pick Up 22 | 8 4 1 9 . Fast Attach 9 | 2 1 . 4 2 Attach 9 | 4 . 2 3 . Detach 3 | . . . 3 . Swap 6 | . . . 6 . Drop 13 | . . 1 12 . Fire 88 | . 28 8 42 10 Melee . | . . . . . Ram . | . . . . . Kick 4 | . . . 4 . Crush 12 | . 1 7 2 2 Escape Stasis . | . . . . . Rewire . | . . . . . Trap . | . . . . . Miscellaneous . | . . . . . Route ------- -11/Scrapyard -10/Materials -10/Mines -9/Materials (discovered 2 exits: *Min x2) -9/Mines History --------- Turn | Location | Event 8 | -11/Scrapyard | Discovered new exit (range 16) 83 | -11/Scrapyard | Entered Materials 302 | -10/Materials | Build established: Mutant 345 | -10/Materials | Discovered new exit (range 16) 465 | -10/Materials | Entered Mines 710 | -10/Mines | Discovered new exit (range 7) 925 | -10/Mines | Found a hidden stash of uninstalled traps 1083 | -10/Mines | Entered Materials 1083 | -9/Materials | Evolved 2 slots: Propulsion x1, Weapon x1 1224 | -9/Materials | Discovered new exit (range 16) 1386 | -9/Materials | Build established: Gunner 1623 | -9/Materials | Discovered new exit (range 11) 1982 | -9/Materials | Entered Mines 2039 | -9/Mines | Core integrity fell below 50% 2046 | -9/Mines | Core integrity fell below 20% 2081 | -9/Mines | Destroyed by G-34 Mercenary with Small Laser Last Messages --------------- 02059_ Imp. Medium Laser destroyed. 02060_ G-47 Trooper misfires. 02061_ G-47 Trooper destroyed. 02063_ Acquired 58 matter. 02066_ Acquired Particle Gun. 02067_ K-01 Serf collects debris. 02068_ Lgt. Treads destroyed. 02069_ R-06 Scavenger collects Aluminum Leg. 02070_ K-01 Serf collects debris. 02071_ NALCXNWXS&JMI&K>MSFGK8<=P>&8YQ/H:LV 02074_ K-01 Serf collects debris. 02074_ Ion Engine melted. 02074_ Aluminum Leg melted. 02074_ G-34 Mercenary destroyed. 02074_ Switching to secondary target: G-34 Mercenary. 02075_ Overheating: System interference. 02075_ Beam Rifle temporarily disabled. 02075_ Particle Gun temporarily disabled. 02080_ Acquired Sml. Laser. 02080_ Lgt. Treads destroyed. Map ----- +----------------------------------------------------+ | ????????????????????????????????????????????????? | | ????????????????????????????????????????????????? | | ????????????????????????????????????????????????? | | ????????????????????????????????????????????????? | | ????????????????????????????????????????????????? | | ????????????????????????????????????????????????? | | ????????????????????????????????????????????????? | | ????????????????????????????????????????????????? | | ????????????????????????????????????????????????? | | ????????????????????????????????????????????????? | | ????????????????????????????????????????????????? | | ????????????????????????????????????????????????? | | ????????????????????????????????????????????????? | | ????????????????????????????????????????????????? | | ????????????????????????????????????????????????? | | ????????????????????????????????????????????????? | | ????????????????????????????????????????????????? | | ???????????????#????????????????????????????????? | | ???????????????# ???????????????????????????????? | | ??????????????## ???????????????????????????????? | | ?????????????## ??????????????????????????????? | | ?????????????# %#####?????????????????????????? | | ?????????????# % ######????????????????????? | | ??????????????# r ## ##???????????????????? | | ???????????????# g #???????????????????? | | ???????????????## !@ #???????????????????? | | ????????????????# u % ##???????????????????? | | ????????????????##### g ##????????????????????? | | ????????????????????# ##?????????????????????? | | ????????????????????# ####??????????????????????? | | ????????????????????# #?????????????????????????? | | ????????????????????# #?????????????????????????? | | ????????????????????# #?????????????????????????? | | ????????????????????# #?????????????????????????? | | ???????????????###### ####??????????????????????? | | ???????????????# #??????????????????????? | | ???????????????# """ #??????????????????????? | | ???????????????# """ #??????????????????????? | | ???????????????# """ ##?????????????????????? | | ???????????????# T#?????????????????????? | | ???????????????# ##?????????????????????? | | ???????????????###########??????????????????????? | | ????????????????????????????????????????????????? | | ????????????????????????????????????????????????? | | ????????????????????????????????????????????????? | | ????????????????????????????????????????????????? | | ????????????????????????????????????????????????? | | | | | | | +----------------------------------------------------+ Best States ------------- Heat Dissipation 38 Energy Generation 10 Energy Capacity 250 Matter Stores 300 Matter Capacity 300 Sight Range 16 Terrain Scan Density 10 Evasion (%) 55 Targeting Accuracy 6 Recoil Reduction 3 Item Schematics ----------------- None Robot Schematics ------------------ None Fabricated ------------ Nothing Alien Tech Used ----------------- None Achievements -------------- None Challenges ------------ None Game ------ Seed ClaymoresStasisWheel Manual? 0 Play Time 00:21:12 Cumulative 5.8 hours Start 2024.04.03 @ 18:32:28 End 2024.04.03 @ 19:26:21 Sessions 1 Manual Loads 0 Difficulty Rogue Special Mode None Game No. 10 Rogue 4 Adventurer 6 Explorer 0 Win Type - Total 0 Types 0/0/0/0/0/0/0/0/0 Lore% 10 Gallery% 12 Achievement% 12 Wizard Run 0 Options --------- Layout 0 ASCII 0 Keyboard 1 Movement Numpad Keybinds 0 Fullscreen 1 Font 18/SmallcapsGlow Map View 76x50 Zoom Use 0% Tactical HUD 1 Map Filters NONE Filters NONE Steam 1 RUN: 040b743b-ff71-4d16-bad3-2194ff9ad179